[Event "Titled Tuesday Blitz August 15 Early 2023"]
[White "Gheorghiu, Calin"]
[Black "Grossboss19"]
[WhiteFideId "1200305"]
[WhiteElo "2420"]
[BlackElo "2535"]
[Result "0-1"]
[Round "10"]
[TimeControl "180+1"]
[Date "2023.08.15"]
[WhiteClock "0:00:00"]
[BlackClock "0:00:18"]
[Board "84"]

1. e4 {[%clk 0:02:40]}  c5 {[%clk 0:02:57]} 2. Nf3 {[%clk 0:02:38]}  a6 {[%clk 0:02:55]} 3. c3 {[%clk 0:02:37]}  d5 {[%clk 0:02:54]} 4. exd5 {[%clk 0:02:37]}  Qxd5 {[%clk 0:02:54]} 5. d4 {[%clk 0:02:37]}  e6 {[%clk 0:02:50]} 6. Be3 {[%clk 0:02:35]}  Nd7 {[%clk 0:02:44]} 7. c4 {[%clk 0:02:29]}  Qd6 {[%clk 0:02:34]} 8. d5 {[%clk 0:02:28]}  exd5 {[%clk 0:02:23]} 9. cxd5 {[%clk 0:02:21]}  Ngf6 {[%clk 0:02:23]} 10. Nc3 {[%clk 0:02:20]}  b5 {[%clk 0:02:23]} 11. Bxb5 {[%clk 0:01:10]}  axb5 {[%clk 0:02:07]} 12. Nxb5 {[%clk 0:01:11]}  Qb6 {[%clk 0:02:05]} 13. Qe2 {[%clk 0:01:10]}  Nxd5 {[%clk 0:01:45]} 14. O-O-O {[%clk 0:00:48]}  N7f6 {[%clk 0:01:07]} 15. Bxc5+ {[%clk 0:00:22]}  Qe6 {[%clk 0:01:07]} 16. Qc4 {[%clk 0:00:21]}  Bxc5 {[%clk 0:00:51]} 17. Rhe1 {[%clk 0:00:21]}  O-O {[%clk 0:00:50]} 18. Rxe6 {[%clk 0:00:20]}  Bxe6 {[%clk 0:00:50]} 19. Qh4 {[%clk 0:00:06]}  Rfc8 {[%clk 0:00:46]} 20. Kb1 {[%clk 0:00:06]}  Bf5+ {[%clk 0:00:44]} 21. Ka1 {[%clk 0:00:06]}  Nb4 {[%clk 0:00:43]} 22. a3 {[%clk 0:00:03]}  Nc2+ {[%clk 0:00:38]} 23. Ka2 {[%clk 0:00:04]}  Be6+ {[%clk 0:00:33]} 24. Kb1 {[%clk 0:00:04]}  Rab8 {[%clk 0:00:33]} 25. Nc3 {[%clk 0:00:02]}  Nxa3+ {[%clk 0:00:32]} 26. Kc1 {[%clk 0:00:02]}  Nb5 {[%clk 0:00:28]} 27. Ng5 {[%clk 0:00:02]}  Nxc3 {[%clk 0:00:21]} 28. bxc3 {[%clk 0:00:02]}  Bf5 {[%clk 0:00:19]} 29. Rd4 {[%clk 0:00:01]}  Bxd4 {[%clk 0:00:19]} 30. Qxd4 {[%clk 0:00:01]}  h6 {[%clk 0:00:18]} 31. Nf3 {[%clk 0:00:01]}  Rb1+ {[%clk 0:00:18]} 32. Kd2 {[%clk 0:00:01]}  Rb2+ {[%clk 0:00:18]} 33. Ke3 {[%clk 0:00:01]}  Re8+ {[%clk 0:00:18]} 34. Kf4 {[%clk 0:00:00]}  Re4+ {[%clk 0:00:18]} 0-1


[Site "https://www.chess.com"]

[Event "Titled Tuesday Blitz August 15 Early 2023"]
[White "Slovineanu, Viacheslav"]
[Black "Kovalevsky, Stanislav"]
[WhiteFideId "13900510"]
[BlackFideId "13508598"]
[WhiteElo "2377"]
[BlackElo "2504"]
[Result "0-1"]
[Round "10"]
[TimeControl "180+1"]
[Date "2023.08.15"]
[WhiteClock "0:00:00"]
[BlackClock "0:00:15"]
[Board "89"]

1. d4 {[%clk 0:02:58]}  d5 {[%clk 0:02:59]} 2. Nf3 {[%clk 0:02:58]}  Nf6 {[%clk 0:02:59]} 3. c4 {[%clk 0:02:58]}  c6 {[%clk 0:03:00]} 4. e3 {[%clk 0:02:58]}  Bf5 {[%clk 0:02:55]} 5. Nc3 {[%clk 0:02:58]}  e6 {[%clk 0:02:55]} 6. Nh4 {[%clk 0:02:58]}  Bg4 {[%clk 0:02:53]} 7. Qb3 {[%clk 0:02:57]}  Qc7 {[%clk 0:02:49]} 8. h3 {[%clk 0:02:56]}  Bh5 {[%clk 0:02:48]} 9. g4 {[%clk 0:02:54]}  Bg6 {[%clk 0:02:48]} 10. Bd2 {[%clk 0:02:52]}  Nbd7 {[%clk 0:02:46]} 11. O-O-O {[%clk 0:02:47]}  a5 {[%clk 0:02:44]} 12. Nxg6 {[%clk 0:02:35]}  hxg6 {[%clk 0:02:43]} 13. g5 {[%clk 0:02:31]}  Ne4 {[%clk 0:02:37]} 14. Nxe4 {[%clk 0:02:28]}  dxe4 {[%clk 0:02:38]} 15. Bg2 {[%clk 0:02:13]}  Rh4 {[%clk 0:02:30]} 16. Be1 {[%clk 0:02:12]}  Bb4 {[%clk 0:02:26]} 17. Qc2 {[%clk 0:02:04]}  Qd8 {[%clk 0:02:08]} 18. Bxe4 {[%clk 0:01:42]}  Bxe1 {[%clk 0:02:07]} 19. Rdxe1 {[%clk 0:01:40]}  Qxg5 {[%clk 0:02:07]} 20. Reg1 {[%clk 0:01:27]}  Qh6 {[%clk 0:02:06]} 21. f4 {[%clk 0:01:13]}  Rxh3 {[%clk 0:01:53]} 22. Qg2 {[%clk 0:01:09]}  Rh4 {[%clk 0:01:27]} 23. Qg3 {[%clk 0:01:02]}  Rh5 {[%clk 0:01:13]} 24. Bf3 {[%clk 0:01:01]}  Nf6 {[%clk 0:01:05]} 25. Bxh5 {[%clk 0:01:00]}  Nxh5 {[%clk 0:01:05]} 26. Qg5 {[%clk 0:00:56]}  Qxg5 {[%clk 0:01:04]} 27. Rxg5 {[%clk 0:00:55]}  Ke7 {[%clk 0:01:03]} 28. Kd2 {[%clk 0:00:52]}  b6 {[%clk 0:01:00]} 29. a4 {[%clk 0:00:48]}  Nf6 {[%clk 0:00:58]} 30. Kd3 {[%clk 0:00:46]}  Rd8 {[%clk 0:00:55]} 31. e4 {[%clk 0:00:43]}  Nd7 {[%clk 0:00:52]} 32. Ke3 {[%clk 0:00:37]}  c5 {[%clk 0:00:51]} 33. d5 {[%clk 0:00:37]}  exd5 {[%clk 0:00:45]} 34. cxd5 {[%clk 0:00:36]}  Nf6 {[%clk 0:00:43]} 35. Kd3 {[%clk 0:00:15]}  Kd7 {[%clk 0:00:38]} 36. b3 {[%clk 0:00:10]}  Re8 {[%clk 0:00:37]} 37. Re5 {[%clk 0:00:09]}  Rxe5 {[%clk 0:00:31]} 38. fxe5 {[%clk 0:00:09]}  Ng4 {[%clk 0:00:32]} 39. Ke2 {[%clk 0:00:04]}  Nxe5 {[%clk 0:00:26]} 40. Rh7 {[%clk 0:00:04]}  c4 {[%clk 0:00:17]} 41. bxc4 {[%clk 0:00:05]}  Nxc4 {[%clk 0:00:18]} 42. Rxg7 {[%clk 0:00:05]}  Ke7 {[%clk 0:00:18]} 43. Rh7 {[%clk 0:00:05]}  Nb2 {[%clk 0:00:18]} 44. e5 {[%clk 0:00:04]}  Nxa4 {[%clk 0:00:18]} 45. e6 {[%clk 0:00:05]}  Nc5 {[%clk 0:00:16]} 46. Rxf7+ {[%clk 0:00:04]}  Kd6 {[%clk 0:00:17]} 47. e7 {[%clk 0:00:01]}  Kd7 {[%clk 0:00:17]} 48. d6 {[%clk 0:00:00]}  Ne4 {[%clk 0:00:15]} 0-1


[Site "https://www.chess.com"]

[Event "Titled Tuesday Blitz August 15 Early 2023"]
[White "Polaczek, Richard"]
[Black "arenal72"]
[WhiteFideId "200026"]
[WhiteElo "2359"]
[BlackElo "2489"]
[Result "1/2-1/2"]
[Round "10"]
[TimeControl "180+1"]
[Date "2023.08.15"]
[WhiteClock "0:00:20"]
[BlackClock "0:00:06"]
[Board "92"]

1. d4 {[%clk 0:02:59]}  d6 {[%clk 0:02:56]} 2. e4 {[%clk 0:02:56]}  Nf6 {[%clk 0:02:55]} 3. Nc3 {[%clk 0:02:56]}  g6 {[%clk 0:02:56]} 4. Bg5 {[%clk 0:02:51]}  Bg7 {[%clk 0:02:54]} 5. f4 {[%clk 0:02:49]}  a6 {[%clk 0:02:39]} 6. e5 {[%clk 0:02:42]}  Nfd7 {[%clk 0:02:34]} 7. Bc4 {[%clk 0:02:22]}  O-O {[%clk 0:02:24]} 8. Nf3 {[%clk 0:02:13]}  b5 {[%clk 0:02:19]} 9. Bd5 {[%clk 0:02:09]}  c6 {[%clk 0:02:18]} 10. Be4 {[%clk 0:02:08]}  d5 {[%clk 0:02:18]} 11. Bd3 {[%clk 0:02:07]}  f6 {[%clk 0:02:18]} 12. Bh4 {[%clk 0:02:07]}  f5 {[%clk 0:02:08]} 13. Ne2 {[%clk 0:02:03]}  Qe8 {[%clk 0:01:47]} 14. c3 {[%clk 0:02:00]}  e6 {[%clk 0:01:47]} 15. O-O {[%clk 0:01:58]}  Bb7 {[%clk 0:01:46]} 16. h3 {[%clk 0:01:53]}  c5 {[%clk 0:01:45]} 17. b4 {[%clk 0:01:44]}  cxb4 {[%clk 0:01:38]} 18. cxb4 {[%clk 0:01:42]}  Nc6 {[%clk 0:01:39]} 19. a3 {[%clk 0:01:37]}  Nb6 {[%clk 0:01:37]} 20. Bf2 {[%clk 0:01:32]}  Nc4 {[%clk 0:01:37]} 21. Qb1 {[%clk 0:01:08]}  a5 {[%clk 0:01:28]} 22. Nc3 {[%clk 0:00:57]}  axb4 {[%clk 0:01:21]} 23. Nxb5 {[%clk 0:00:57]}  bxa3 {[%clk 0:01:16]} 24. Nc7 {[%clk 0:00:55]}  Qc8 {[%clk 0:01:12]} 25. Nxa8 {[%clk 0:00:53]}  Qxa8 {[%clk 0:01:13]} 26. Ng5 {[%clk 0:00:49]}  Re8 {[%clk 0:00:55]} 27. Qa2 {[%clk 0:00:46]}  Nb4 {[%clk 0:00:54]} 28. Qb3 {[%clk 0:00:46]}  Nxd3 {[%clk 0:00:54]} 29. Qxd3 {[%clk 0:00:45]}  Ba6 {[%clk 0:00:51]} 30. Rfc1 {[%clk 0:00:42]}  Qc6 {[%clk 0:00:47]} 31. Qc3 {[%clk 0:00:41]}  Rb8 {[%clk 0:00:36]} 32. Rxa3 {[%clk 0:00:39]}  Bf8 {[%clk 0:00:31]} 33. Rb3 {[%clk 0:00:39]}  Rxb3 {[%clk 0:00:30]} 34. Qxb3 {[%clk 0:00:39]}  Bb5 {[%clk 0:00:27]} 35. Ra1 {[%clk 0:00:38]}  h6 {[%clk 0:00:26]} 36. Nf3 {[%clk 0:00:37]}  Be7 {[%clk 0:00:22]} 37. Bh4 {[%clk 0:00:36]}  Bxh4 {[%clk 0:00:20]} 38. Nxh4 {[%clk 0:00:36]}  g5 {[%clk 0:00:21]} 39. fxg5 {[%clk 0:00:31]}  hxg5 {[%clk 0:00:21]} 40. Nf3 {[%clk 0:00:30]}  g4 {[%clk 0:00:20]} 41. hxg4 {[%clk 0:00:30]}  fxg4 {[%clk 0:00:21]} 42. Ng5 {[%clk 0:00:30]}  Qb6 {[%clk 0:00:19]} 43. Qd3 {[%clk 0:00:27]}  Nxe5 {[%clk 0:00:17]} 44. Qh7+ {[%clk 0:00:26]}  Kf8 {[%clk 0:00:17]} 45. Ra7 {[%clk 0:00:23]}  Qxd4+ {[%clk 0:00:15]} 46. Kh2 {[%clk 0:00:23]}  Qf4+ {[%clk 0:00:15]} 47. Kg1 {[%clk 0:00:21]}  Qe3+ {[%clk 0:00:12]} 48. Kh2 {[%clk 0:00:21]}  Qf4+ {[%clk 0:00:09]} 49. Kg1 {[%clk 0:00:20]}  Qd4+ {[%clk 0:00:08]} 50. Kh2 {[%clk 0:00:20]}  Qf4+ {[%clk 0:00:06]} 1/2-1/2


[Site "https://www.chess.com"]

[Event "Titled Tuesday Blitz August 15 Early 2023"]
[White "Mihailidis, Anastasios"]
[Black "Konenkin, Dmitry"]
[WhiteFideId "4205588"]
[BlackFideId "4185781"]
[WhiteElo "2486"]
[BlackElo "2319"]
[Result "1-0"]
[Round "10"]
[TimeControl "180+1"]
[Date "2023.08.15"]
[WhiteClock "0:00:34"]
[BlackClock "0:00:19"]
[Board "93"]

1. e4 {[%clk 0:03:00]}  d6 {[%clk 0:03:00]} 2. d4 {[%clk 0:03:00]}  Nf6 {[%clk 0:02:59]} 3. Nc3 {[%clk 0:02:59]}  e5 {[%clk 0:03:00]} 4. dxe5 {[%clk 0:02:59]}  dxe5 {[%clk 0:03:00]} 5. Qxd8+ {[%clk 0:02:59]}  Kxd8 {[%clk 0:03:01]} 6. Bg5 {[%clk 0:02:59]}  Be6 {[%clk 0:03:02]} 7. O-O-O+ {[%clk 0:02:57]}  Nd7 {[%clk 0:03:01]} 8. f3 {[%clk 0:02:55]}  c6 {[%clk 0:03:00]} 9. f4 {[%clk 0:02:43]}  exf4 {[%clk 0:02:55]} 10. e5 {[%clk 0:02:41]}  h6 {[%clk 0:02:55]} 11. Bxf4 {[%clk 0:02:32]}  Ng4 {[%clk 0:02:53]} 12. Bg3 {[%clk 0:02:15]}  Kc7 {[%clk 0:02:50]} 13. Nf3 {[%clk 0:02:14]}  Bc5 {[%clk 0:02:22]} 14. Re1 {[%clk 0:01:46]}  Be3+ {[%clk 0:02:12]} 15. Kb1 {[%clk 0:01:44]}  Bf2 {[%clk 0:01:53]} 16. Bxf2 {[%clk 0:01:39]}  Nxf2 {[%clk 0:01:54]} 17. Rg1 {[%clk 0:01:39]}  Nc5 {[%clk 0:01:07]} 18. Re2 {[%clk 0:00:59]}  Ng4 {[%clk 0:00:58]} 19. h3 {[%clk 0:00:58]}  Bc4 {[%clk 0:00:53]} 20. Re1 {[%clk 0:00:57]}  Bxf1 {[%clk 0:00:52]} 21. Rgxf1 {[%clk 0:00:57]}  h5 {[%clk 0:00:42]} 22. hxg4 {[%clk 0:00:56]}  hxg4 {[%clk 0:00:43]} 23. Ng5 {[%clk 0:00:55]}  Rh2 {[%clk 0:00:42]} 24. Rxf7+ {[%clk 0:00:53]}  Kb6 {[%clk 0:00:43]} 25. e6 {[%clk 0:00:52]}  Rxg2 {[%clk 0:00:42]} 26. e7 {[%clk 0:00:52]}  Re8 {[%clk 0:00:42]} 27. a3 {[%clk 0:00:50]}  Nd7 {[%clk 0:00:40]} 28. Ne6 {[%clk 0:00:42]}  g3 {[%clk 0:00:28]} 29. Nxg7 {[%clk 0:00:41]}  Rf2 {[%clk 0:00:29]} 30. Nxe8 {[%clk 0:00:35]}  Rxf7 {[%clk 0:00:28]} 31. Nd6 {[%clk 0:00:35]}  Rxe7 {[%clk 0:00:22]} 32. Rxe7 {[%clk 0:00:35]}  g2 {[%clk 0:00:19]} 33. Rg7 {[%clk 0:00:34]} 1-0


[Site "https://www.chess.com"]

[Event "Titled Tuesday Blitz August 15 Early 2023"]
[White "Gritsenko, Nikolai"]
[Black "KorolDimitriy75"]
[WhiteFideId "14112493"]
[WhiteElo "2708"]
[BlackElo "2421"]
[Result "1-0"]
[Round "10"]
[TimeControl "180+1"]
[Date "2023.08.15"]
[WhiteClock "0:00:36"]
[BlackClock "0:00:01"]
[Board "95"]

1. e4 {[%clk 0:03:00]}  c5 {[%clk 0:03:00]} 2. Nf3 {[%clk 0:03:00]}  d6 {[%clk 0:03:00]} 3. Bb5+ {[%clk 0:03:00]}  Nd7 {[%clk 0:02:59]} 4. O-O {[%clk 0:03:00]}  Nf6 {[%clk 0:02:59]} 5. Re1 {[%clk 0:03:00]}  a6 {[%clk 0:02:59]} 6. Bf1 {[%clk 0:02:59]}  e5 {[%clk 0:02:58]} 7. c3 {[%clk 0:02:59]}  Be7 {[%clk 0:02:57]} 8. d4 {[%clk 0:02:59]}  O-O {[%clk 0:02:55]} 9. Nbd2 {[%clk 0:02:59]}  Qc7 {[%clk 0:02:55]} 10. a4 {[%clk 0:02:57]}  b6 {[%clk 0:02:53]} 11. dxe5 {[%clk 0:02:49]}  dxe5 {[%clk 0:02:51]} 12. Nc4 {[%clk 0:02:47]}  Bb7 {[%clk 0:02:47]} 13. Qc2 {[%clk 0:02:36]}  Rfe8 {[%clk 0:02:34]} 14. Bg5 {[%clk 0:02:31]}  h6 {[%clk 0:02:15]} 15. Bd2 {[%clk 0:02:30]}  Bf8 {[%clk 0:02:10]} 16. Rad1 {[%clk 0:02:27]}  Bc6 {[%clk 0:01:55]} 17. Bc1 {[%clk 0:02:15]}  b5 {[%clk 0:01:22]} 18. Ncd2 {[%clk 0:02:07]}  c4 {[%clk 0:00:55]} 19. axb5 {[%clk 0:02:02]}  axb5 {[%clk 0:00:55]} 20. Nh4 {[%clk 0:01:56]}  Nc5 {[%clk 0:00:43]} 21. f3 {[%clk 0:01:44]}  g6 {[%clk 0:00:33]} 22. g3 {[%clk 0:01:42]}  Ne6 {[%clk 0:00:27]} 23. Kh1 {[%clk 0:01:38]}  Qb7 {[%clk 0:00:25]} 24. Bg2 {[%clk 0:01:36]}  Nc5 {[%clk 0:00:24]} 25. Nf1 {[%clk 0:01:34]}  Nd3 {[%clk 0:00:23]} 26. Rxd3 {[%clk 0:01:34]}  cxd3 {[%clk 0:00:23]} 27. Qxd3 {[%clk 0:01:34]}  Rad8 {[%clk 0:00:23]} 28. Qc2 {[%clk 0:01:32]}  Bg7 {[%clk 0:00:21]} 29. Ne3 {[%clk 0:01:30]}  Kh7 {[%clk 0:00:20]} 30. Kg1 {[%clk 0:01:27]}  Qb6 {[%clk 0:00:18]} 31. Kh1 {[%clk 0:01:26]}  Bf8 {[%clk 0:00:17]} 32. Bf1 {[%clk 0:01:24]}  Qb7 {[%clk 0:00:16]} 33. Nhg2 {[%clk 0:01:24]}  Bc5 {[%clk 0:00:14]} 34. Qb3 {[%clk 0:01:23]}  Kg7 {[%clk 0:00:11]} 35. h4 {[%clk 0:01:23]}  h5 {[%clk 0:00:11]} 36. Kh2 {[%clk 0:01:22]}  Rd7 {[%clk 0:00:09]} 37. Nc2 {[%clk 0:01:17]}  Red8 {[%clk 0:00:09]} 38. Be3 {[%clk 0:01:17]}  Bxe3 {[%clk 0:00:08]} 39. Ncxe3 {[%clk 0:01:15]}  Rd2 {[%clk 0:00:08]} 40. Be2 {[%clk 0:01:12]}  Bxe4 {[%clk 0:00:05]} 41. fxe4 {[%clk 0:01:08]}  Qxe4 {[%clk 0:00:05]} 42. Qxb5 {[%clk 0:01:03]}  Ng4+ {[%clk 0:00:05]} 43. Bxg4 {[%clk 0:00:51]}  hxg4 {[%clk 0:00:06]} 44. Qf1 {[%clk 0:00:48]}  R8d3 {[%clk 0:00:05]} 45. Qg1 {[%clk 0:00:45]}  Kg8 {[%clk 0:00:04]} 46. h5 {[%clk 0:00:44]}  Rxb2 {[%clk 0:00:04]} 47. hxg6 {[%clk 0:00:44]}  fxg6 {[%clk 0:00:04]} 48. Qf1 {[%clk 0:00:43]}  Rdd2 {[%clk 0:00:04]} 49. Qg1 {[%clk 0:00:41]}  Qf3 {[%clk 0:00:04]} 50. Rf1 {[%clk 0:00:41]}  Rf2 {[%clk 0:00:04]} 51. Rxf2 {[%clk 0:00:41]}  Rxf2 {[%clk 0:00:05]} 52. Qe1 {[%clk 0:00:39]}  Re2 {[%clk 0:00:05]} 53. Qc1 {[%clk 0:00:38]}  Qf2 {[%clk 0:00:04]} 54. Qb1 {[%clk 0:00:36]}  Rxe3 {[%clk 0:00:04]} 55. Qxg6+ {[%clk 0:00:36]}  Kf8 {[%clk 0:00:04]} 56. Qh6+ {[%clk 0:00:36]}  Ke8 {[%clk 0:00:04]} 57. Qxe3 {[%clk 0:00:36]}  Qf1 {[%clk 0:00:01]} 58. Qxe5+ {[%clk 0:00:36]} 1-0


[Site "https://www.chess.com"]

[Event "Titled Tuesday Blitz August 15 Early 2023"]
[White "Todorovic, Bojan"]
[Black "Iskusnyh, Sergei"]
[WhiteFideId "917087"]
[BlackFideId "4120027"]
[WhiteElo "2417"]
[BlackElo "2630"]
[Result "1-0"]
[Round "10"]
[TimeControl "180+1"]
[Date "2023.08.15"]
[WhiteClock "0:00:04"]
[BlackClock "0:00:00"]
[Board "96"]

1. d4 {[%clk 0:02:58]}  d5 {[%clk 0:02:59]} 2. c4 {[%clk 0:02:57]}  c6 {[%clk 0:02:59]} 3. Nf3 {[%clk 0:02:56]}  Nf6 {[%clk 0:02:58]} 4. Nc3 {[%clk 0:02:55]}  e6 {[%clk 0:02:58]} 5. e3 {[%clk 0:02:49]}  a6 {[%clk 0:02:57]} 6. a4 {[%clk 0:02:47]}  c5 {[%clk 0:02:52]} 7. cxd5 {[%clk 0:02:41]}  exd5 {[%clk 0:02:51]} 8. Bd3 {[%clk 0:02:39]}  Nc6 {[%clk 0:02:50]} 9. O-O {[%clk 0:02:37]}  Be6 {[%clk 0:02:49]} 10. Bd2 {[%clk 0:02:30]}  Bd6 {[%clk 0:02:44]} 11. dxc5 {[%clk 0:02:28]}  Bxc5 {[%clk 0:02:44]} 12. Rc1 {[%clk 0:02:28]}  O-O {[%clk 0:02:39]} 13. Ne2 {[%clk 0:02:23]}  Ba7 {[%clk 0:02:35]} 14. Bc3 {[%clk 0:02:15]}  Bg4 {[%clk 0:02:33]} 15. Nfd4 {[%clk 0:02:11]}  Nxd4 {[%clk 0:02:14]} 16. Bxd4 {[%clk 0:02:09]}  Bxd4 {[%clk 0:02:13]} 17. exd4 {[%clk 0:02:09]}  Re8 {[%clk 0:02:10]} 18. f3 {[%clk 0:02:04]}  Bh5 {[%clk 0:02:08]} 19. Nf4 {[%clk 0:02:03]}  Qb6 {[%clk 0:02:07]} 20. Nxh5 {[%clk 0:02:02]}  Nxh5 {[%clk 0:02:04]} 21. Kh1 {[%clk 0:01:45]}  g6 {[%clk 0:01:50]} 22. Rc5 {[%clk 0:01:35]}  Rad8 {[%clk 0:01:47]} 23. Qd2 {[%clk 0:01:30]}  Ng7 {[%clk 0:01:43]} 24. a5 {[%clk 0:01:21]}  Qf6 {[%clk 0:01:42]} 25. Qb4 {[%clk 0:01:15]}  Ne6 {[%clk 0:01:36]} 26. Rc3 {[%clk 0:01:11]}  Rd7 {[%clk 0:01:12]} 27. Bc2 {[%clk 0:00:57]}  Nxd4 {[%clk 0:00:55]} 28. Ba4 {[%clk 0:00:53]}  Nc6 {[%clk 0:00:55]} 29. Bxc6 {[%clk 0:00:36]}  bxc6 {[%clk 0:00:54]} 30. Qb6 {[%clk 0:00:34]}  Rd6 {[%clk 0:00:37]} 31. Qxa6 {[%clk 0:00:33]}  d4 {[%clk 0:00:37]} 32. Rd3 {[%clk 0:00:31]}  c5 {[%clk 0:00:37]} 33. Qc4 {[%clk 0:00:31]}  Rb8 {[%clk 0:00:25]} 34. Qxc5 {[%clk 0:00:24]}  Rxb2 {[%clk 0:00:22]} 35. a6 {[%clk 0:00:20]}  Rxa6 {[%clk 0:00:20]} 36. Qxd4 {[%clk 0:00:19]}  Qxd4 {[%clk 0:00:16]} 37. Rxd4 {[%clk 0:00:19]}  Raa2 {[%clk 0:00:17]} 38. Rg1 {[%clk 0:00:20]}  h5 {[%clk 0:00:17]} 39. h4 {[%clk 0:00:20]}  Kg7 {[%clk 0:00:17]} 40. Kh2 {[%clk 0:00:20]}  Rb3 {[%clk 0:00:16]} 41. Kh3 {[%clk 0:00:18]}  Kf6 {[%clk 0:00:15]} 42. Rf4+ {[%clk 0:00:17]}  Kg7 {[%clk 0:00:15]} 43. Re4 {[%clk 0:00:15]}  Rc2 {[%clk 0:00:14]} 44. Rge1 {[%clk 0:00:14]}  Rbb2 {[%clk 0:00:14]} 45. Rg1 {[%clk 0:00:14]}  Rd2 {[%clk 0:00:13]} 46. Rf4 {[%clk 0:00:14]}  f5 {[%clk 0:00:12]} 47. Rc4 {[%clk 0:00:13]}  Kh6 {[%clk 0:00:11]} 48. Rc6 {[%clk 0:00:13]}  Rd4 {[%clk 0:00:10]} 49. Re6 {[%clk 0:00:10]}  Rbb4 {[%clk 0:00:10]} 50. g3 {[%clk 0:00:09]}  Rd3 {[%clk 0:00:09]} 51. Rf1 {[%clk 0:00:07]}  Rb2 {[%clk 0:00:08]} 52. f4 {[%clk 0:00:05]}  Rdd2 {[%clk 0:00:08]} 53. Rh1 {[%clk 0:00:05]}  Rf2 {[%clk 0:00:07]} 54. Re3 {[%clk 0:00:05]}  Kg7 {[%clk 0:00:06]} 55. Rd3 {[%clk 0:00:04]}  Kf7 {[%clk 0:00:06]} 56. Re3 {[%clk 0:00:05]}  Rbd2 {[%clk 0:00:04]} 57. Rc3 {[%clk 0:00:04]}  Rfe2 {[%clk 0:00:00]} 58. Rb3 {[%clk 0:00:04]} 1-0


[Site "https://www.chess.com"]

[Event "Titled Tuesday Blitz August 15 Early 2023"]
[White "jimmy-schlumpf"]
[Black "Ivanov, Alexey"]
[BlackFideId "4167635"]
[WhiteElo "2406"]
[BlackElo "2573"]
[Result "0-1"]
[Round "10"]
[TimeControl "180+1"]
[Date "2023.08.15"]
[WhiteClock "0:01:13"]
[BlackClock "0:01:43"]
[Board "98"]

1. Nf3 {[%clk 0:03:00]}  c6 {[%clk 0:03:00]} 2. g3 {[%clk 0:03:00]}  d5 {[%clk 0:03:01]} 3. Bg2 {[%clk 0:03:00]}  Nf6 {[%clk 0:03:01]} 4. O-O {[%clk 0:03:00]}  Bf5 {[%clk 0:03:02]} 5. d3 {[%clk 0:03:01]}  e6 {[%clk 0:03:03]} 6. c4 {[%clk 0:03:01]}  h6 {[%clk 0:03:03]} 7. Be3 {[%clk 0:03:01]}  Nbd7 {[%clk 0:03:02]} 8. Qb3 {[%clk 0:03:02]}  Qc8 {[%clk 0:02:52]} 9. cxd5 {[%clk 0:03:01]}  exd5 {[%clk 0:02:52]} 10. Nc3 {[%clk 0:03:00]}  Bc5 {[%clk 0:02:48]} 11. Bxc5 {[%clk 0:02:59]}  Nxc5 {[%clk 0:02:48]} 12. Qa3 {[%clk 0:03:00]}  Na6 {[%clk 0:02:45]} 13. Rac1 {[%clk 0:02:59]}  Qd7 {[%clk 0:02:46]} 14. Nd4 {[%clk 0:02:54]}  Be6 {[%clk 0:02:43]} 15. Nxc6 {[%clk 0:02:42]}  Qxc6 {[%clk 0:02:35]} 16. Nxd5 {[%clk 0:02:41]}  Qd7 {[%clk 0:02:35]} 17. Nxf6+ {[%clk 0:02:39]}  gxf6 {[%clk 0:02:33]} 18. Rc3 {[%clk 0:02:20]}  Rb8 {[%clk 0:02:28]} 19. Rfc1 {[%clk 0:02:17]}  Qe7 {[%clk 0:02:28]} 20. Qa4+ {[%clk 0:02:12]}  Kf8 {[%clk 0:02:27]} 21. Qf4 {[%clk 0:01:52]}  Kg7 {[%clk 0:02:24]} 22. a3 {[%clk 0:01:52]}  h5 {[%clk 0:02:22]} 23. h4 {[%clk 0:01:51]}  Rbd8 {[%clk 0:02:18]} 24. b4 {[%clk 0:01:46]}  Rd7 {[%clk 0:02:13]} 25. d4 {[%clk 0:01:45]}  Qd6 {[%clk 0:01:58]} 26. Qxd6 {[%clk 0:01:38]}  Rxd6 {[%clk 0:01:58]} 27. Bxb7 {[%clk 0:01:37]}  Rb8 {[%clk 0:01:58]} 28. Bxa6 {[%clk 0:01:33]}  Rxa6 {[%clk 0:01:57]} 29. e4 {[%clk 0:01:32]}  Rbb6 {[%clk 0:01:50]} 30. f4 {[%clk 0:01:30]}  Rd6 {[%clk 0:01:49]} 31. d5 {[%clk 0:01:29]}  Bg4 {[%clk 0:01:46]} 32. Kf2 {[%clk 0:01:28]}  f5 {[%clk 0:01:46]} 33. Ke3 {[%clk 0:01:26]}  fxe4 {[%clk 0:01:45]} 34. Kxe4 {[%clk 0:01:26]}  Rd7 {[%clk 0:01:46]} 35. Rc6 {[%clk 0:01:21]}  Rxa3 {[%clk 0:01:45]} 36. Rg6+ {[%clk 0:01:13]}  Kxg6 {[%clk 0:01:43]} 0-1


[Site "https://www.chess.com"]

[Event "Titled Tuesday Blitz August 15 Early 2023"]
[White "Efremov, Vladislav"]
[Black "Bilan, Danila"]
[WhiteFideId "44159935"]
[BlackFideId "24161918"]
[WhiteElo "2399"]
[BlackElo "2568"]
[Result "1-0"]
[Round "10"]
[TimeControl "180+1"]
[Date "2023.08.15"]
[WhiteClock "0:01:19"]
[BlackClock "0:00:04"]
[Board "100"]

1. d4 {[%clk 0:02:58]}  d5 {[%clk 0:02:58]} 2. c4 {[%clk 0:02:59]}  c6 {[%clk 0:02:58]} 3. cxd5 {[%clk 0:02:58]}  cxd5 {[%clk 0:02:59]} 4. Nc3 {[%clk 0:02:59]}  Nf6 {[%clk 0:03:00]} 5. Nf3 {[%clk 0:02:59]}  Nc6 {[%clk 0:03:00]} 6. Bf4 {[%clk 0:03:00]}  Bf5 {[%clk 0:03:01]} 7. e3 {[%clk 0:02:58]}  e6 {[%clk 0:03:00]} 8. Bd3 {[%clk 0:02:57]}  Bg6 {[%clk 0:02:59]} 9. O-O {[%clk 0:02:57]}  Bd6 {[%clk 0:02:58]} 10. Bg3 {[%clk 0:02:57]}  O-O {[%clk 0:02:58]} 11. Bxg6 {[%clk 0:02:56]}  hxg6 {[%clk 0:02:58]} 12. Bxd6 {[%clk 0:02:57]}  Qxd6 {[%clk 0:02:58]} 13. Rc1 {[%clk 0:02:57]}  Rfc8 {[%clk 0:02:57]} 14. Na4 {[%clk 0:02:56]}  Ne4 {[%clk 0:02:49]} 15. Nc5 {[%clk 0:02:54]}  Nxc5 {[%clk 0:02:31]} 16. Rxc5 {[%clk 0:02:55]}  Rc7 {[%clk 0:02:31]} 17. Qd2 {[%clk 0:02:53]}  Rac8 {[%clk 0:02:31]} 18. Rfc1 {[%clk 0:02:53]}  b6 {[%clk 0:02:28]} 19. R5c2 {[%clk 0:02:51]}  Na5 {[%clk 0:02:28]} 20. b3 {[%clk 0:02:48]}  Rxc2 {[%clk 0:02:20]} 21. Rxc2 {[%clk 0:02:49]}  Rxc2 {[%clk 0:02:21]} 22. Qxc2 {[%clk 0:02:49]}  Nc6 {[%clk 0:02:20]} 23. h3 {[%clk 0:02:46]}  Ne7 {[%clk 0:02:12]} 24. Ne5 {[%clk 0:02:44]}  g5 {[%clk 0:01:57]} 25. a4 {[%clk 0:02:34]}  f6 {[%clk 0:01:56]} 26. Nf3 {[%clk 0:02:08]}  Nc6 {[%clk 0:01:53]} 27. g4 {[%clk 0:02:04]}  Kf7 {[%clk 0:01:31]} 28. Kg2 {[%clk 0:02:01]}  Ne7 {[%clk 0:01:23]} 29. h4 {[%clk 0:01:39]}  gxh4 {[%clk 0:01:18]} 30. Qh7 {[%clk 0:01:28]}  Qc6 {[%clk 0:01:00]} 31. Qh5+ {[%clk 0:01:24]}  Kg8 {[%clk 0:01:00]} 32. g5 {[%clk 0:01:21]}  fxg5 {[%clk 0:00:16]} 33. Nxg5 {[%clk 0:01:20]}  Nf5 {[%clk 0:00:04]} 34. Qf7+ {[%clk 0:01:19]} 1-0


[Site "https://www.chess.com"]